fUST/lending_fUST_20241110
["ID","MTS","AMOUNT","RATE_DAILY","PERIOD"]
[341739541,1731169841625,-523.28,0.0003041,2]
[341739542,1731169841634,-500.0,0.0003041,2]
[341739543,1731169841644,-500.0,0.0003041,2]
[341739544,1731169841654,-500.0,0.0003041,2]
[341739545,1731169841663,-500.0,0.0003041,2]
[341739546,1731169841672,-500.0,0.0003041,2]
[341739547,1731169841682,-500.0,0.0003041,2]
[341739548,1731169841691,-500.0,0.0003041,2]
[341739549,1731169841701,-500.0,0.0003041,2]
[341739550,1731169841710,-500.0,0.0003041,2]
[341739551,1731169841719,-196.49,0.0003041,2]
[341739553,1731169841728,-500.0,0.0003041,2]
[341739554,1731169841737,-500.0,0.0003041,2]
[341739555,1731169841746,-500.0,0.0003041,2]
[341739556,1731169841755,-500.0,0.0003041,2]
[341739557,1731169841764,-500.0,0.0003041,2]
[341739558,1731169841773,-500.0,0.0003041,2]
[341739559,1731169841783,-553.35,0.0003041,2]
[341739561,1731169841792,-500.0,0.0003041,2]
[341739563,1731169841802,-500.0,0.0003041,2]
[341739565,1731169841811,-500.0,0.0003041,2]
[341739567,1731169841822,-500.0,0.0003041,2]
[341739569,1731169841831,-500.0,0.0003041,2]
[341739571,1731169841840,-500.0,0.0003041,2]
[341739572,1731169841849,-500.0,0.0003041,2]
[341739573,1731169841859,-500.0,0.0003041,2]
[341739574,1731169841868,-500.0,0.0003041,2]
[341739576,1731169841877,-500.0,0.0003041,2]
[341739577,1731169841886,-500.0,0.0003041,2]
[341739578,1731169841895,-500.0,0.0003041,2]
[341739579,1731169841904,-500.0,0.0003041,2]
[341739580,1731169841913,-500.0,0.0003041,2]
[341739581,1731169842003,-500.0,0.0003041,2]
[341739582,1731169842012,-500.0,0.0003041,2]
[341739583,1731169842022,-500.0,0.0003041,2]
[341739584,1731169842032,-500.0,0.0003041,2]
[341739585,1731169842041,-467.85,0.0003041,2]
[341739586,1731169842050,-1310.12,0.0003041,2]
[341739587,1731169842060,-500.0,0.0003041,2]
[341739588,1731169842071,-165.31,0.0003041,2]
[341739589,1731169842080,-500.0,0.0003041,2]
[341739590,1731169842092,-500.0,0.0003041,2]
[341739591,1731169842102,-500.0,0.0003041,2]
[341739592,1731169842112,-500.0,0.0003041,2]
[341739593,1731169842121,-500.0,0.0003041,2]
[341739594,1731169842130,-500.0,0.0003041,2]
[341739595,1731169842139,-500.0,0.0003041,2]
[341739596,1731169842149,-500.0,0.0003041,2]
[341739597,1731169842158,-500.0,0.0003041,2]
[341739598,1731169842167,-500.0,0.0003041,2]
[341739599,1731169842177,-500.0,0.0003041,2]
[341739600,1731169842186,-500.0,0.0003041,2]
[341739601,1731169842195,-500.0,0.0003041,2]
[341739602,1731169842204,-509.74,0.0003041,2]
[341739603,1731169842213,-500.0,0.0003041,2]
[341739604,1731169842222,-500.0,0.0003041,2]
[341739605,1731169842231,-500.0,0.0003041,2]
[341739606,1731169842240,-500.0,0.0003041,2]
[341739607,1731169842249,-500.0,0.0003041,2]
[341739608,1731169842259,-500.0,0.0003041,2]
[341739609,1731169842268,-500.0,0.0003041,2]
[341739610,1731169842277,-500.0,0.0003041,2]
[341739611,1731169842286,-609.58,0.0003041,2]
[341739612,1731169842295,-500.0,0.0003041,2]
[341739613,1731169842304,-614.290382,0.0003041,2]
[341739614,1731169842314,-500.0,0.0003041,2]
[341739615,1731169842326,-500.0,0.0003041,2]
[341739616,1731169842335,-500.0,0.0003041,2]
[341739617,1731169842345,-500.0,0.0003041,2]
[341739618,1731169842354,-1311.04,0.00030426,2]
[341739619,1731169842363,-1311.04,0.00030437,2]
[341739620,1731169842372,-1999.0,0.00030438,2]
[341739621,1731169842381,-1999.0,0.00030438,2]
[341739622,1731169842390,-1999.0,0.00030438,2]
[341739623,1731169842398,-1999.0,0.00030438,2]
[341739624,1731169842408,-1999.0,0.00030438,2]
[341739625,1731169842417,-1999.0,0.00030438,2]
[341739626,1731169842426,-1999.0,0.00030438,2]
[341739627,1731169842435,-1999.0,0.00030438,2]
[341739628,1731169842445,-1999.0,0.00030438,2]
[341739629,1731169842454,-1766.77663,0.00030438,2]
[341739630,1731169842470,-500.0,0.00030473,2]
[341739631,1731169842483,-500.0,0.00030473,5]
[341739632,1731169842493,-500.0,0.00030571,3]
[341739633,1731169842504,-1311.04,0.00030683,2]
[341739634,1731169842513,-500.0,0.00030683,7]
[341739635,1731169842523,-500.0,0.00030684,2]
[341739636,1731169842533,-500.0,0.00030684,2]
[341739637,1731169842543,-500.0,0.00030684,2]
[341739638,1731169842553,-500.0,0.00030684,2]
[341739639,1731169842563,-500.0,0.00030684,2]
[341739640,1731169842575,-500.0,0.00030684,2]
[341739641,1731169842588,-500.0,0.00030684,2]
[341739642,1731169842598,-636.58,0.00030684,2]
[341739643,1731169842608,-500.0,0.00030684,2]
[341739644,1731169842618,-500.0,0.00030684,2]
[341739645,1731169842629,-500.0,0.00030684,2]
[341739646,1731169842638,-204.86,0.00030684,2]
[341739647,1731169842647,-573.20694072,0.00030684,2]
[341739648,1731169842659,-500.89748958,0.00030684,2]
[341739649,1731169842668,-500.0,0.00030684,2]
[341739650,1731169842678,-483.89,0.00030684,2]
[341739651,1731169842687,-500.0,0.00030684,2]
[341739652,1731169842697,-500.0,0.00030684,2]
[341739653,1731169842706,-500.0,0.00030684,2]
[341739654,1731169842715,-170.93,0.00030684,2]
[341739655,1731169842725,-500.0,0.00030684,2]
[341739656,1731169842735,-500.0,0.00030684,2]
[341739657,1731169842744,-500.0,0.00030684,2]
[341739658,1731169842753,-500.0,0.00030684,2]
[341739659,1731169842763,-500.0,0.00030684,2]
[341739660,1731169842772,-336.48,0.00030684,2]
[341739661,1731169842782,-500.0,0.00030684,2]
[341739662,1731169842791,-500.0,0.00030684,2]
[341739663,1731169842800,-358.08,0.00030684,2]
[341739664,1731169842810,-500.0,0.00030684,2]
[341739665,1731169842827,-490.36,0.00030684,2]
[341739666,1731169842837,-500.0,0.00030684,2]
[341739667,1731169842847,-559.85593017,0.00030684,2]
[341739668,1731169842856,-500.0,0.00030684,2]
[341739669,1731169842866,-511.46,0.00030684,2]
[341739671,1731169842876,-500.0,0.00030684,2]
[341739672,1731169842885,-583.53,0.00030684,2]
[341739673,1731169842895,-500.0,0.00030684,2]
[341739674,1731169842907,-500.0,0.00030684,2]
[341739675,1731169842917,-524.78461665,0.00030684,2]
[341739677,1731169842927,-500.0,0.00030684,2]
[341739678,1731169842936,-500.0,0.00030684,2]
[341739680,1731169842946,-500.0,0.00030684,2]
[341739682,1731169842955,-500.0,0.00030684,2]
[341739683,1731169842964,-500.0,0.00030684,2]
[341739684,1731169842974,-500.0,0.00030684,2]
[341739685,1731169842983,-500.0,0.00030684,2]
[341739687,1731169842993,-500.0,0.00030684,2]
[341739688,1731169843002,-500.0,0.00030684,2]
[341739689,1731169843012,-500.0,0.00030684,2]
[341739690,1731169843021,-500.0,0.00030684,2]
[341739691,1731169843030,-500.0,0.00030684,2]
[341739692,1731169843040,-500.0,0.00030684,2]
[341739693,1731169843049,-493.85982093,0.00030684,2]
[341739694,1731169843059,-528.9,0.00030684,2]
[341739695,1731169843070,-500.0,0.00030684,2]
[341739697,1731169843080,-500.0,0.00030684,2]
[341739698,1731169843089,-500.0,0.00030684,2]
[341739699,1731169843099,-500.0,0.00030684,2]
[341739700,1731169843109,-500.0,0.00030684,2]
[341739701,1731169843118,-573.13,0.00030684,2]
[341739702,1731169843127,-500.0,0.00030684,2]
[341739703,1731169843137,-500.0,0.00030684,2]
[341739704,1731169843146,-327.12806717,0.00030684,2]
[341739705,1731169843156,-500.0,0.00030684,2]
[341739706,1731169843165,-252.02,0.00030684,2]
[341739707,1731169843175,-500.0,0.00030684,2]
[341739708,1731169843184,-500.0,0.00030684,2]
[341739709,1731169843194,-262.9,0.00030684,2]
[341739710,1731169843203,-500.0,0.00030684,2]
[341739711,1731169843212,-500.0,0.00030684,2]
[341739712,1731169843221,-500.0,0.00030684,2]
[341739713,1731169843231,-500.0,0.00030684,2]
[341739714,1731169843241,-314.64,0.00030684,2]
[341739715,1731169843254,-616.56,0.00030684,2]
[341739716,1731169843264,-500.0,0.00030684,2]
[341739717,1731169843273,-1310.12,0.00030684,2]
[341739718,1731169843283,-500.0,0.00030684,2]
[341739719,1731169843292,-500.0,0.00030684,2]
[341739720,1731169843301,-324.17,0.00030684,2]
[341739721,1731169843310,-500.0,0.00030684,2]
[341739722,1731169843320,-500.0,0.00030684,2]
[341739723,1731169843330,-572.21,0.00030684,2]
[341739724,1731169843339,-500.0,0.00030684,2]
[341739725,1731169843348,-500.0,0.00030684,2]
[341739726,1731169843358,-500.0,0.00030684,2]
[341739727,1731169843368,-500.0,0.00030684,2]
[341739729,1731169843377,-500.0,0.00030684,2]
[341739731,1731169843387,-158.01,0.00030684,2]
[341739732,1731169843396,-628.65,0.00030684,2]
[341739733,1731169843407,-307.99,0.00030684,2]
[341739734,1731169843416,-555.2,0.00030684,2]
[341739735,1731169843425,-500.0,0.00030684,2]
[341739736,1731169843434,-500.0,0.00030684,2]
[341739738,1731169843444,-500.0,0.00030684,2]
[341739740,1731169843453,-500.0,0.00030684,2]
[341739742,1731169843462,-500.0,0.00030684,2]
[341739744,1731169843471,-500.0,0.00030684,2]
[341739746,1731169843481,-500.0,0.00030684,2]
[341739748,1731169843490,-500.0,0.00030684,2]
[341739750,1731169843500,-3644.9,0.00030743,30]
[341739752,1731169843509,-420.0,0.00030763,2]
[341739754,1731169843519,-154.31976093,0.00030793,2]
[341739756,1731169843528,-150.112237,0.000308,17]
[341739758,1731169843537,-500.0,0.00030819,3]
[341739760,1731169843547,-150.112233,0.000309,15]
[341739762,1731169843558,-1311.04,0.00030957,2]
[341739765,1731169843567,-500.0,0.00030958,2]
[341739767,1731169843579,-172.15,0.00030958,2]
[341739771,1731169843588,-558.38,0.00030958,2]
[341739774,1731169843597,-500.0,0.00030958,2]
[341739776,1731169843606,-500.0,0.00030958,2]
[341739778,1731169843616,-500.0,0.00030958,2]
[341739779,1731169843626,-274.47,0.00030958,2]
[341739781,1731169843636,-500.0,0.00030958,2]
[341739783,1731169843645,-500.0,0.00030958,2]
[341739784,1731169843655,-500.0,0.00030958,2]
[341739785,1731169843664,-502.66914012,0.00030958,14]
[341739786,1731169843673,-500.0,0.00030958,2]
[341739788,1731169843683,-500.0,0.00030958,2]
[341739789,1731169843692,-284.46563105,0.00030958,2]
[341739791,1731169843701,-500.0,0.00030958,2]
[341739792,1731169843711,-435.46,0.00030958,2]
[341739793,1731169843720,-600.88,0.00030958,2]
[341739794,1731169843729,-152.17,0.00030958,2]
[341739795,1731169843738,-500.0,0.00030958,2]
[341739796,1731169843747,-309.31127447,0.00030958,2]
[341739797,1731169843757,-500.0,0.00030958,2]
[341739798,1731169843766,-241.64,0.00030958,2]
[341739799,1731169843775,-500.0,0.00030958,2]
[341739800,1731169843785,-229.54,0.00030958,2]
[341739801,1731169843794,-270.65,0.00030958,2]
[341739802,1731169843803,-176.92,0.00030958,2]
[341739803,1731169843813,-250.35,0.00030958,2]
[341739804,1731169843825,-500.0,0.00030958,2]
[341739805,1731169843836,-499.45,0.00030958,2]
[341739806,1731169843845,-621.4,0.00030958,2]
[341739807,1731169843854,-500.0,0.00030958,2]
[341739808,1731169843864,-159.85,0.00030958,2]
[341739809,1731169843873,-260.59,0.00030958,2]
[341739810,1731169843882,-500.0,0.00030958,2]
[341739811,1731169843891,-249.7,0.00030958,2]
[341739812,1731169843901,-500.0,0.00030958,2]
[341739813,1731169843910,-455.9,0.00030958,2]
[341739814,1731169843920,-611.26,0.00030958,2]
[341739815,1731169843929,-366.1,0.00030958,2]
[341739816,1731169843939,-500.0,0.00030958,2]
[341739817,1731169843948,-500.0,0.00030958,2]
[341739818,1731169843957,-365.21,0.00030958,2]
[341739819,1731169843967,-364.74,0.00030958,2]
[341739820,1731169843976,-500.0,0.00030958,2]
[341739821,1731169843985,-500.0,0.00030958,2]
[341739822,1731169843994,-500.0,0.00030958,2]
[341739823,1731169844003,-161.1,0.00030958,2]
[341739824,1731169844013,-442.28,0.00030958,2]
[341739825,1731169844022,-1310.12,0.00030958,2]
[341739826,1731169844031,-482.63,0.00030958,2]
[341739827,1731169844040,-500.0,0.00030958,2]
[341739828,1731169844049,-416.1,0.00030958,2]
[341739829,1731169844059,-500.0,0.00030958,2]
[341739830,1731169844069,-365.84,0.00030958,2]
[341739831,1731169844078,-500.0,0.00030958,2]
[341739832,1731169844087,-500.0,0.00030958,2]
[341739833,1731169844098,-500.0,0.00030958,2]
[341739834,1731169844108,-500.0,0.00030958,2]
[341739835,1731169844117,-500.0,0.00030958,2]
[341739836,1731169844127,-500.0,0.00030958,2]
[341739837,1731169844136,-257.0,0.00030958,2]
[341739838,1731169844145,-539.91,0.00030958,2]
[341739839,1731169844155,-500.0,0.00030958,2]
[341739840,1731169844164,-399.73,0.00030958,2]
[341739841,1731169844174,-555.35,0.00030958,2]
[341739842,1731169844183,-150.112233,0.00031,13]
[341739843,1731169844283,-150.112233,0.000311,11]
[341739844,1731169844292,-500.0,0.00031126,3]
[341739845,1731169844302,-1000.0,0.00031132,2]
[341739846,1731169844312,-500.0,0.00031173,5]
[341739847,1731169844322,-500.0,0.00031173,5]
[341739848,1731169844331,-500.0,0.00031173,5]
[341739849,1731169844340,-500.0,0.00031173,5]
[341739850,1731169844349,-339.49399627,0.00031199,2]
[341739851,1731169844359,-500.0,0.00031199,2]
[341739852,1731169844368,-500.0,0.00031199,2]
[341739853,1731169844377,-500.0,0.00031199,2]
[341739854,1731169844386,-292.40068092,0.00031199,2]
[341739855,1731169844395,-500.0,0.00031199,2]
[341739856,1731169844405,-150.112233,0.000312,18]
[341739857,1731169844415,-99998.999999,0.000312,2]
[341739858,1731169844424,-1311.04,0.00031231,2]
[341739859,1731169844433,-500.0,0.00031232,2]
[341739860,1731169844442,-500.0,0.00031232,2]
[341739861,1731169844451,-500.0,0.00031232,2]
[341739862,1731169844460,-500.0,0.00031232,2]
[341739863,1731169844470,-225.36,0.00031232,2]
[341739864,1731169844479,-500.0,0.00031232,2]
[341739865,1731169844489,-500.0,0.00031232,2]
[341739866,1731169844498,-207.4552484,0.00031232,2]
[341739867,1731169844507,-528.32290881,0.00031232,2]
[341739868,1731169844516,-500.0,0.00031232,2]
[341739869,1731169844525,-500.0,0.00031232,2]
[341739870,1731169844535,-523.33,0.00031232,2]
[341739871,1731169844544,-500.0,0.00031232,2]
[341739872,1731169844554,-500.0,0.00031232,2]
[341739873,1731169844563,-500.0,0.00031232,2]
[341739874,1731169844574,-500.0,0.00031232,2]
[341739875,1731169844590,-353.04298642,0.00031232,2]
[341739876,1731169844600,-500.0,0.00031232,2]
[341739877,1731169844610,-400.31,0.00031232,2]
[341739878,1731169844620,-500.0,0.00031232,2]
[341739879,1731169844630,-500.0,0.00031232,2]
[341739880,1731169844639,-1310.12,0.00031232,2]
[341739881,1731169844649,-500.0,0.00031232,2]
[341739882,1731169844659,-500.0,0.00031232,2]
[341739883,1731169844670,-269.52,0.00031232,2]
[341739884,1731169844679,-500.0,0.00031232,2]
[341739885,1731169844689,-417.49,0.00031232,2]
[341739886,1731169844699,-500.0,0.00031232,2]
[341739887,1731169844709,-500.0,0.00031232,2]
[341739888,1731169844719,-201.96,0.00031232,2]
[341739889,1731169844730,-500.0,0.00031232,2]
[341739890,1731169844740,-150.112233,0.000313,19]
[341739891,1731169844750,-420.0,0.00031349,2]
[341739892,1731169844759,-4567.07,0.00031368,120]
[341739893,1731169844769,-150.112233,0.000314,14]
[341739894,1731169844779,-242.59555001,0.00031406,2]
[341739895,1731169844788,-195.7424794,0.00031421,15]
[341739896,1731169844798,-1311.04,0.00031425,2]
[341739897,1731169844807,-17662.02600001,0.00031426,21]
[341739898,1731169844816,-500.0,0.0003143,3]
[341739899,1731169844826,-333.82,0.00031496,3]
[341739900,1731169844835,-150.112233,0.000315,16]
[341739901,1731169844846,-999.999999,0.000315,2]
[341739902,1731169844857,-600.0,0.00031505,2]
[341739903,1731169844866,-173.6,0.00031506,2]
[341739904,1731169844875,-500.0,0.00031506,2]
[341739905,1731169844885,-500.0,0.00031506,2]
[341739906,1731169844894,-570.15,0.00031506,2]
[341739907,1731169844903,-500.0,0.00031506,2]
[341739908,1731169844912,-500.0,0.00031506,2]
[341739909,1731169844921,-500.0,0.00031506,2]
[341739910,1731169844931,-500.0,0.00031506,2]
[341739911,1731169844941,-500.0,0.00031506,2]
[341739912,1731169844950,-500.0,0.00031506,2]
[341739913,1731169844959,-500.0,0.00031506,2]
[341739914,1731169844969,-480.44,0.00031506,2]
[341739915,1731169844978,-500.0,0.00031506,2]
[341739916,1731169844988,-500.0,0.00031506,2]
[341739917,1731169844998,-500.0,0.00031506,2]
[341739918,1731169845007,-1310.12,0.00031506,2]
[341739919,1731169845017,-500.0,0.00031506,2]
[341739920,1731169845027,-155.74,0.00031506,2]
[341739921,1731169845037,-500.0,0.00031506,2]
[341739922,1731169845046,-485.78,0.00031506,2]
[341739923,1731169845055,-188.32,0.00031506,2]
[341739924,1731169845064,-407.22,0.00031506,2]
[341739925,1731169845074,-306.71095064,0.00031524,2]
[341739926,1731169845083,-1311.04,0.00031524,2]
[341739927,1731169845093,-1311.04,0.00031525,2]
[341739928,1731169845102,-1311.04,0.00031525,2]
[341739929,1731169845111,-500.0,0.00031526,2]
[341739930,1731169845120,-632.48360302,0.00031526,2]
[341739931,1731169845130,-500.0,0.00031526,2]
[341739932,1731169845139,-500.0,0.00031526,2]
[341739933,1731169845148,-582.32619829,0.00031526,2]
[341739934,1731169845158,-389.1628194,0.00031526,2]
[341739935,1731169845167,-309.19728738,0.00031526,2]
[341739936,1731169845176,-500.0,0.00031526,2]
[341739937,1731169845185,-500.0,0.00031526,2]
[341739938,1731169845196,-500.0,0.00031526,2]
[341739939,1731169845206,-500.0,0.00031526,2]
[341739940,1731169845216,-500.0,0.00031526,2]
[341739941,1731169845225,-500.0,0.00031526,2]
[341739942,1731169845235,-500.0,0.00031526,2]
[341739943,1731169845244,-500.0,0.00031526,2]
[341739944,1731169845254,-500.0,0.00031526,2]
[341739945,1731169845263,-500.0,0.00031526,2]
[341739946,1731169845273,-323.58959545,0.00031526,2]
[341739947,1731169845282,-502.81814686,0.00031526,2]
[341739948,1731169845291,-500.0,0.00031526,2]
[341739949,1731169845301,-502.9777247,0.00031526,2]
[341739950,1731169845310,-500.0,0.00031526,2]
[341739951,1731169845321,-574.29465316,0.00031526,2]
[341739952,1731169845331,-500.0,0.00031526,2]
[341739953,1731169845341,-500.0,0.00031526,2]
[341739954,1731169845350,-500.0,0.00031526,2]
[341739955,1731169845360,-502.17802771,0.00031526,2]
[341739956,1731169845370,-500.0,0.00031526,2]
[341739957,1731169845380,-500.0,0.00031526,2]
[341739958,1731169845389,-500.0,0.00031526,2]
[341739959,1731169845399,-500.0,0.00031526,2]
[341739960,1731169845408,-502.25065988,0.00031526,2]
[341739961,1731169845417,-622.9,0.00031526,2]
[341739962,1731169845427,-500.0,0.00031526,2]
[341739963,1731169845436,-452.76,0.00031526,2]
[341739964,1731169845446,-500.0,0.00031526,2]
[341739965,1731169845455,-500.0,0.00031526,2]
[341739966,1731169845464,-502.91477559,0.00031526,2]
[341739967,1731169845473,-500.0,0.00031526,2]
[341739968,1731169845483,-160.209,0.0003153,10]
[341739969,1731169845492,-150.25186792,0.0003155,2]
[341739970,1731169845501,-1986.08426424,0.0003155,2]
[341739971,1731169845511,-154.31976093,0.0003155,2]
[341739972,1731169845520,-376.01,0.000316,31]
[341739973,1731169845530,-376.01,0.000316,31]
[341739974,1731169845539,-376.01,0.000316,31]
[341739975,1731169845549,-376.01,0.000316,31]
[341739976,1731169845559,-376.01,0.000316,31]
[341739977,1731169845570,-376.01,0.000316,31]
[341739978,1731169845586,-376.01,0.000316,31]
[341739979,1731169845596,-376.01,0.000316,31]
[341739980,1731169845605,-376.01,0.000316,31]
[341739981,1731169845615,-376.01,0.000316,31]
[341739982,1731169845625,-376.01,0.000316,31]
[341739983,1731169845635,-376.01,0.000316,31]
[341739984,1731169845647,-150.112233,0.000316,20]
[341739985,1731169845656,-500.0,0.000316,36]
[341739986,1731169845666,-179.58127993,0.00031649,2]
[341739987,1731169845675,-1311.04,0.00031649,2]
[341739988,1731169845686,-1311.04,0.00031649,2]
[341739989,1731169845695,-1311.04,0.00031649,2]
[341739990,1731169845704,-1311.04,0.00031649,2]
[341739991,1731169845713,-1311.04,0.00031649,2]
[341739992,1731169845723,-1311.04,0.00031649,2]
[341739993,1731169845733,-1311.04,0.00031649,2]
[341739994,1731169845742,-1311.04,0.00031649,2]
[341739995,1731169845752,-1311.04,0.00031649,2]
[341739996,1731169845761,-1311.23089572,0.00031649,2]
[341739997,1731169845770,-1373.48180684,0.0003165,2]
[341739998,1731169845780,-688.77558036,0.0003165,2]
[341739999,1731169845789,-151.0,0.0003165,7]
[341740000,1731169845799,-151.0,0.0003165,7]
[341740001,1731169845807,-239.91711,0.0003165,7]
[341740003,1731169845817,-151.0,0.0003165,7]
[341740004,1731169845826,-151.0,0.0003165,7]
[341740005,1731169845835,-151.0,0.0003165,7]
[341740006,1731169845845,-151.0,0.0003165,7]
[341740007,1731169845854,-152.675519,0.0003165,7]
[341740008,1731169845864,-151.0,0.0003165,7]
[341740010,1731169845874,-151.0,0.0003165,7]
[341740011,1731169845884,-542.113231,0.0003165,7]
[341740012,1731169845894,-542.113231,0.0003165,7]
[341740013,1731169845905,-151.0,0.0003165,7]
[341740014,1731169845915,-626.689014,0.0003165,7]
[341740015,1731169845926,-626.689014,0.0003165,7]
[341740016,1731169845935,-626.689014,0.0003165,7]
[341740017,1731169845945,-626.689014,0.0003165,7]
[341740018,1731169845956,-2581251.58443392,0.0003165,10]
[341740019,1731169846037,-404.184135,0.0003165,10]
[341740020,1731169846079,-2521.89,0.00030126,10]
[341740021,1731169846090,-500.0,0.00030136,2]
[341740022,1731169846101,-500.0,0.00030684,2]
[341740023,1731169846111,-408.66,0.00030958,2]
[341740024,1731169846121,-27.41449165,0.0003165,10]
[341740025,1731169846139,-2392.0,0.00027666,2]
[341740026,1731169846148,-636.39999999,0.0003165,10]
[341740028,1731169846160,-8883.73680977,0.0003165,10]
[341740029,1731169846172,-3300.15711357,0.0003165,10]
[341740030,1731169846205,-81.53252428,0.0003165,10]
[341740031,1731169846217,-3916.19035309,0.0003165,10]
[341740035,1731169846597,-503.62948781,0.0003165,10]
[341740036,1731170007487,162.500934,0.00013973,2]
[341740039,1731170725217,175.580602,0.00013973,2]
[341740138,1731171038819,-694.44444444,0.00023705,2]
[341740139,1731171038829,-443.404977,0.00028091,2]
[341740140,1731171038839,-1026.180777,0.00028222,2]
[341740141,1731171038848,-733.02,0.000286,2]
[341740142,1731171038857,-443.404977,0.00028776,2]
[341740143,1731171038866,-443.404977,0.00029461,2]
[341740144,1731171038875,-217.5,0.0003,120]
[341740145,1731171038884,-500.0,0.0003,120]
[341740146,1731171038893,-184.7156532,0.00030036,2]
[341740147,1731171038902,-355.0,0.00030135,2]
[341740148,1731171038912,-400.0,0.00030135,2]
[341740149,1731171038921,-205.38636394,0.00030136,7]
[341740150,1731171038930,-270.0,0.00030136,2]
[341740151,1731171038940,-500.0,0.00030136,2]
[341740152,1731171038949,-354.92376797,0.00030136,2]
[341740153,1731171038958,-506.24474513,0.00030136,2]
[341740154,1731171038968,-500.0,0.00030136,2]
[341740155,1731171038977,-500.0,0.00030136,2]
[341740156,1731171038986,-345.78544429,0.00030136,2]
[341740157,1731171038996,-500.0,0.00030136,2]
[341740158,1731171039005,-500.0,0.00030136,2]
[341740159,1731171039014,-297.03363868,0.00030136,2]
[341740160,1731171039024,-402.5509113,0.00030136,2]
[341740161,1731171039033,-500.0,0.00030136,2]
[341740162,1731171039042,-500.0,0.00030136,2]
[341740163,1731171039052,-500.0,0.00030136,2]
[341740164,1731171039062,-517.89125779,0.00030136,2]
[341740165,1731171039071,-500.0,0.00030136,2]
[341740166,1731171039080,-500.0,0.00030136,2]
[341740167,1731171039089,-509.30236651,0.00030136,2]
[341740168,1731171039099,-500.0,0.00030136,2]
[341740169,1731171039108,-500.0,0.00030136,2]
[341740170,1731171039117,-500.0,0.00030136,2]
[341740171,1731171039128,-500.0,0.00030136,2]
[341740172,1731171039137,-500.0,0.00030136,2]
[341740173,1731171039146,-500.0,0.00030136,2]
[341740174,1731171039155,-500.0,0.00030136,2]
[341740175,1731171039164,-414.90287553,0.00030136,2]
[341740176,1731171039173,-503.50876755,0.00030136,2]
[341740177,1731171039183,-500.0,0.00030136,2]
[341740178,1731171039192,-500.0,0.00030136,2]
[341740179,1731171039201,-500.0,0.00030136,2]
[341740180,1731171039210,-192.679,0.00030136,25]
[341740181,1731171039220,-500.0,0.00030136,2]
[341740182,1731171039229,-500.0,0.00030136,2]
[341740183,1731171039238,-502.48861596,0.00030136,2]
[341740184,1731171039248,-500.0,0.00030136,2]
[341740185,1731171039257,-501.72928131,0.00030136,2]
[341740186,1731171039266,-500.0,0.00030136,2]
[341740187,1731171039275,-500.0,0.00030136,2]
[341740188,1731171039284,-502.25065988,0.00030136,2]
[341740189,1731171039293,-500.0,0.00030136,2]